[Event "*** Titled Tuesday Blitz"]
[Site "Chess.com"]
[Date "2021.02.02"]
[Round "11"]
[White "zurzan"]
[Black "AntonovaNadezhda"]
[Result "0-1"]
[WhiteElo "2025"]
[BlackElo "2147"]
[TimeControl "180+1"]
[EndTime "12:06:36 PST"]
[Termination "AntonovaNadezhda won on time"]

1. f4 {[%clk 0:03:00.9]} 1... d5 {[%clk 0:02:56.5]} 2. Nf3 {[%clk 0:03:01]} 2...
Nf6 {[%clk 0:02:56.4]} 3. g3 {[%clk 0:03:01.3]} 3... Bf5 {[%clk 0:02:56.8]} 4.
Bg2 {[%clk 0:03:02.2]} 4... e6 {[%clk 0:02:56.6]} 5. O-O {[%clk 0:03:03.1]} 5...
h6 {[%clk 0:02:56.7]} 6. d3 {[%clk 0:03:04]} 6... Be7 {[%clk 0:02:55.8]} 7. c3
{[%clk 0:03:04.9]} 7... O-O {[%clk 0:02:55.4]} 8. Qe1 {[%clk 0:03:04.9]} 8...
Bh7 {[%clk 0:02:49.7]} 9. Nbd2 {[%clk 0:03:04.1]} 9... c5 {[%clk 0:02:48.2]} 10.
h3 {[%clk 0:03:04]} 10... Nc6 {[%clk 0:02:47.7]} 11. e4 {[%clk 0:03:01.4]} 11...
dxe4 {[%clk 0:02:47.2]} 12. dxe4 {[%clk 0:03:02.3]} 12... Qd3 {[%clk 0:02:39.8]}
13. e5 {[%clk 0:02:58.2]} 13... Nd5 {[%clk 0:02:37.6]} 14. Nb3 {[%clk
0:02:44.5]} 14... a5 {[%clk 0:02:28.5]} 15. a4 {[%clk 0:02:38.6]} 15... Rad8
{[%clk 0:02:23.1]} 16. Rf2 {[%clk 0:02:22.2]} 16... Qa6 {[%clk 0:02:08.3]} 17.
Bf1 {[%clk 0:02:19.6]} 17... Qa8 {[%clk 0:02:07.4]} 18. Kh2 {[%clk 0:02:04.6]}
18... Rd7 {[%clk 0:02:06.4]} 19. Nfd2 {[%clk 0:01:53.8]} 19... Rfd8 {[%clk
0:02:05.5]} 20. Nc4 {[%clk 0:01:50.4]} 20... Qa7 {[%clk 0:01:46.9]} 21. Ne3
{[%clk 0:01:37.2]} 21... b6 {[%clk 0:01:37.1]} 22. Bb5 {[%clk 0:01:36.4]} 22...
Qb7 {[%clk 0:01:26.9]} 23. Nd2 {[%clk 0:01:09.4]} 23... Nc7 {[%clk 0:01:10.9]}
24. Ndc4 {[%clk 0:01:08.5]} 24... Nxb5 {[%clk 0:01:04.5]} 25. axb5 {[%clk
0:01:09.4]} 25... Na7 {[%clk 0:01:04.6]} 26. f5 {[%clk 0:01:01.2]} 26... exf5
{[%clk 0:01:02]} 27. Nxf5 {[%clk 0:01:00.7]} 27... Bxf5 {[%clk 0:00:53.3]} 28.
Rxf5 {[%clk 0:01:00.4]} 28... Rd1 {[%clk 0:00:53.4]} 29. Nd6 {[%clk 0:00:26.3]}
29... Rxe1 {[%clk 0:00:51.2]} 30. Nxb7 {[%clk 0:00:25.7]} 30... Rdd1 {[%clk
0:00:49.4]} 31. b4 {[%clk 0:00:07.1]} 31... cxb4 {[%clk 0:00:47.2]} 32. cxb4
{[%clk 0:00:06.3]} 32... Bxb4 {[%clk 0:00:47.3]} 33. Nd6 {[%clk 0:00:04.3]}
33... Re2+ {[%clk 0:00:26.8]} 0-1

[Event "*** Titled Tuesday Blitz"]
[Site "Chess.com"]
[Date "2021.02.02"]
[Round "11"]
[White "almo64"]
[Black "MatyChess1"]
[Result "1-0"]
[WhiteElo "2758"]
[BlackElo "2595"]
[TimeControl "180+1"]
[EndTime "12:06:40 PST"]
[Termination "almo64 won by checkmate"]

1. e4 {[%clk 0:03:00.9]} 1... c5 {[%clk 0:03:00.1]} 2. Nf3 {[%clk 0:02:59.8]}
2... d6 {[%clk 0:03:00.6]} 3. d4 {[%clk 0:02:58.8]} 3... cxd4 {[%clk 0:03:01.5]}
4. Qxd4 {[%clk 0:02:58.6]} 4... Nf6 {[%clk 0:03:02.4]} 5. Be2 {[%clk 0:02:56.9]}
5... Nc6 {[%clk 0:03:01.5]} 6. Qe3 {[%clk 0:02:57]} 6... g6 {[%clk 0:03:00.5]}
7. O-O {[%clk 0:02:57]} 7... Bg7 {[%clk 0:03:01.2]} 8. Rd1 {[%clk 0:02:56.9]}
8... O-O {[%clk 0:03:01.7]} 9. Nc3 {[%clk 0:02:56.6]} 9... Ng4 {[%clk
0:02:59.5]} 10. Qf4 {[%clk 0:02:50.9]} 10... Qa5 {[%clk 0:02:48]} 11. h3 {[%clk
0:02:29.8]} 11... Nge5 {[%clk 0:02:47.2]} 12. Nd5 {[%clk 0:02:25]} 12... Nxf3+
{[%clk 0:02:39.2]} 13. Qxf3 {[%clk 0:02:21.1]} 13... Be6 {[%clk 0:02:39.7]} 14.
c3 {[%clk 0:02:15.6]} 14... Rac8 {[%clk 0:02:28.8]} 15. Qg3 {[%clk 0:02:10]}
15... b5 {[%clk 0:02:19.5]} 16. Qh4 {[%clk 0:02:07.3]} 16... Rfe8 {[%clk
0:02:02.4]} 17. a4 {[%clk 0:01:42.2]} 17... bxa4 {[%clk 0:01:52]} 18. b4 {[%clk
0:01:41.2]} 18... Qd8 {[%clk 0:01:40.3]} 19. Rxa4 {[%clk 0:01:40.9]} 19... Bxd5
{[%clk 0:01:32.1]} 20. exd5 {[%clk 0:01:40]} 20... Ne5 {[%clk 0:01:31.3]} 21. c4
{[%clk 0:01:27.8]} 21... Bf6 {[%clk 0:00:41.3]} 22. Qe4 {[%clk 0:01:25.2]} 22...
Qd7 {[%clk 0:00:34.1]} 23. b5 {[%clk 0:01:24.7]} 23... Qc7 {[%clk 0:00:29.4]}
24. Be3 {[%clk 0:01:24]} 24... Ra8 {[%clk 0:00:29]} 25. Rda1 {[%clk 0:01:11.1]}
25... Nd7 {[%clk 0:00:25.8]} 26. Rxa7 {[%clk 0:01:09.6]} 26... Rxa7 {[%clk
0:00:20.8]} 27. Rxa7 {[%clk 0:01:07.9]} 27... Qd8 {[%clk 0:00:20.8]} 28. Qb1
{[%clk 0:00:59.3]} 28... Nc5 {[%clk 0:00:15.8]} 29. b6 {[%clk 0:00:57.8]} 29...
Qb8 {[%clk 0:00:14.9]} 30. Qb5 {[%clk 0:00:47.6]} 30... Rc8 {[%clk 0:00:13.2]}
31. b7 {[%clk 0:00:41.8]} 31... Rd8 {[%clk 0:00:09.7]} 32. Qb6 {[%clk 0:00:32]}
32... Kg7 {[%clk 0:00:07.5]} 33. Bxc5 {[%clk 0:00:28.1]} 33... dxc5 {[%clk
0:00:07.6]} 34. Qxd8 {[%clk 0:00:20.9]} 34... Qxd8 {[%clk 0:00:06]} 35. Ra8
{[%clk 0:00:21.3]} 35... Qd6 {[%clk 0:00:03.7]} 36. b8=Q {[%clk 0:00:21.2]}
36... Qd7 {[%clk 0:00:03.3]} 37. Qf8# {[%clk 0:00:20.2]} 1-0

[Event "*** Titled Tuesday Blitz"]
[Site "Chess.com"]
[Date "2021.02.02"]
[Round "11"]
[White "Grieve72"]
[Black "ARTHURMOTIVATOR"]
[Result "0-1"]
[WhiteElo "2466"]
[BlackElo "2316"]
[TimeControl "180+1"]
[EndTime "12:06:40 PST"]
[Termination "ARTHURMOTIVATOR won on time"]

1. e4 {[%clk 0:03:00.1]} 1... e5 {[%clk 0:02:59.1]} 2. Nf3 {[%clk 0:02:59.8]}
2... Nc6 {[%clk 0:02:59.3]} 3. Bc4 {[%clk 0:03:00.3]} 3... Nf6 {[%clk
0:02:58.3]} 4. d3 {[%clk 0:03:00.2]} 4... h6 {[%clk 0:02:55.8]} 5. O-O {[%clk
0:02:57.6]} 5... d6 {[%clk 0:02:55.2]} 6. c3 {[%clk 0:02:46.2]} 6... g6 {[%clk
0:02:55.1]} 7. d4 {[%clk 0:02:31.6]} 7... Qe7 {[%clk 0:02:52.2]} 8. Re1 {[%clk
0:02:30.2]} 8... Bg7 {[%clk 0:02:50.2]} 9. a4 {[%clk 0:02:21.9]} 9... O-O {[%clk
0:02:48.6]} 10. Nbd2 {[%clk 0:02:18.2]} 10... Nh5 {[%clk 0:02:43.8]} 11. Nf1
{[%clk 0:02:09]} 11... Bg4 {[%clk 0:02:34.4]} 12. d5 {[%clk 0:01:57.3]} 12...
Nd8 {[%clk 0:02:33.4]} 13. a5 {[%clk 0:01:52.4]} 13... f5 {[%clk 0:02:27.4]} 14.
h3 {[%clk 0:01:46]} 14... Bxf3 {[%clk 0:02:22]} 15. Qxf3 {[%clk 0:01:46.9]}
15... Nf7 {[%clk 0:02:00.6]} 16. exf5 {[%clk 0:01:28]} 16... Ng5 {[%clk
0:02:00.2]} 17. Qe2 {[%clk 0:00:59.9]} 17... Rxf5 {[%clk 0:01:50.4]} 18. Bd3
{[%clk 0:01:00.1]} 18... Nf4 {[%clk 0:01:49.2]} 19. Bxf4 {[%clk 0:00:56.2]}
19... Rxf4 {[%clk 0:01:49.2]} 20. Ng3 {[%clk 0:00:40]} 20... Raf8 {[%clk
0:01:44.7]} 21. Rf1 {[%clk 0:00:28]} 21... h5 {[%clk 0:01:27.5]} 22. Bxg6 {[%clk
0:00:24]} 22... h4 {[%clk 0:01:23.1]} 23. Nh5 {[%clk 0:00:24.1]} 23... Nf3+
{[%clk 0:00:59.8]} 24. Kh1 {[%clk 0:00:16.6]} 24... Qg5 {[%clk 0:00:45.7]} 25.
Nxf4 {[%clk 0:00:16.5]} 25... Rxf4 {[%clk 0:00:44.5]} 26. Be4 {[%clk 0:00:13.9]}
26... Rxe4 {[%clk 0:00:37]} 27. Qxe4 {[%clk 0:00:11.5]} 27... Nd2 {[%clk
0:00:37.9]} 28. Qe3 {[%clk 0:00:07.1]} 28... Qxe3 {[%clk 0:00:38]} 29. fxe3
{[%clk 0:00:08]} 29... Nxf1 {[%clk 0:00:38.4]} 30. Rxf1 {[%clk 0:00:08.9]} 30...
Bh6 {[%clk 0:00:38.5]} 31. e4 {[%clk 0:00:06.8]} 31... Kg7 {[%clk 0:00:35.6]}
32. Rf3 {[%clk 0:00:04.4]} 32... Kg6 {[%clk 0:00:35]} 33. Kg1 {[%clk 0:00:04.7]}
33... Bf4 {[%clk 0:00:34.5]} 34. Kf2 {[%clk 0:00:04.3]} 34... Kg5 {[%clk
0:00:34.2]} 35. Ke2 {[%clk 0:00:04.6]} 35... a6 {[%clk 0:00:32.7]} 36. Kd3
{[%clk 0:00:04.5]} 36... Kf6 {[%clk 0:00:31.6]} 37. Kc4 {[%clk 0:00:04.7]} 37...
Ke7 {[%clk 0:00:30.6]} 0-1

[Event "*** Titled Tuesday Blitz"]
[Site "Chess.com"]
[Date "2021.02.02"]
[Round "11"]
[White "karinachess1"]
[Black "Cambek64"]
[Result "1-0"]
[WhiteElo "2476"]
[BlackElo "2306"]
[TimeControl "180+1"]
[EndTime "12:06:45 PST"]
[Termination "karinachess1 won by resignation"]

1. e4 {[%clk 0:03:00.9]} 1... e6 {[%clk 0:03:00.1]} 2. d4 {[%clk 0:03:00.3]}
2... d5 {[%clk 0:03:00.4]} 3. Nc3 {[%clk 0:02:59.4]} 3... Nc6 {[%clk 0:02:59.6]}
4. e5 {[%clk 0:02:54.8]} 4... Nge7 {[%clk 0:02:58.8]} 5. Nf3 {[%clk 0:02:45.5]}
5... Nf5 {[%clk 0:02:56]} 6. Be2 {[%clk 0:02:29.4]} 6... h5 {[%clk 0:02:49.6]}
7. Bg5 {[%clk 0:02:18.6]} 7... Be7 {[%clk 0:02:49.1]} 8. h4 {[%clk 0:02:19.3]}
8... b6 {[%clk 0:02:44.9]} 9. Qd2 {[%clk 0:02:10.3]} 9... Bb7 {[%clk 0:02:44.5]}
10. O-O-O {[%clk 0:01:54.7]} 10... Qd7 {[%clk 0:02:44.9]} 11. Bxe7 {[%clk
0:01:51.9]} 11... Qxe7 {[%clk 0:02:43.7]} 12. Qf4 {[%clk 0:01:32.4]} 12... O-O-O
{[%clk 0:02:41.6]} 13. Bd3 {[%clk 0:01:27]} 13... g6 {[%clk 0:02:35.8]} 14. Bxf5
{[%clk 0:01:23.2]} 14... gxf5 {[%clk 0:02:36.3]} 15. Ng5 {[%clk 0:01:23.2]}
15... Kb8 {[%clk 0:02:33]} 16. Kb1 {[%clk 0:01:20.5]} 16... Na5 {[%clk
0:02:31.2]} 17. b3 {[%clk 0:01:09.4]} 17... Rd7 {[%clk 0:02:30.9]} 18. Qc1
{[%clk 0:01:03.9]} 18... Qb4 {[%clk 0:02:29.7]} 19. Qb2 {[%clk 0:01:04.1]} 19...
Rc8 {[%clk 0:02:22.5]} 20. Rh3 {[%clk 0:01:01.5]} 20... Qe7 {[%clk 0:02:19.3]}
21. Nh7 {[%clk 0:00:44.4]} 21... Rdd8 {[%clk 0:02:14.9]} 22. Nf6 {[%clk
0:00:44.3]} 22... Rh8 {[%clk 0:02:15]} 23. Rg3 {[%clk 0:00:43.1]} 23... a6
{[%clk 0:02:12.9]} 24. Na4 {[%clk 0:00:36.9]} 24... Bc6 {[%clk 0:02:07.9]} 25.
Nc3 {[%clk 0:00:29.4]} 25... Ka7 {[%clk 0:02:06.4]} 26. Rg5 {[%clk 0:00:28.4]}
26... Bb7 {[%clk 0:02:05.4]} 27. g3 {[%clk 0:00:20.2]} 27... c5 {[%clk
0:02:05.6]} 28. Ne2 {[%clk 0:00:17.3]} 28... b5 {[%clk 0:01:55.2]} 29. c3 {[%clk
0:00:17.6]} 29... b4 {[%clk 0:01:51]} 30. cxb4 {[%clk 0:00:13.4]} 30... cxb4
{[%clk 0:01:48.7]} 31. Rxh5 {[%clk 0:00:12.9]} 31... Rhd8 {[%clk 0:01:38.6]} 32.
Rc1 {[%clk 0:00:12.4]} 32... Rxc1+ {[%clk 0:01:35]} 33. Nxc1 {[%clk 0:00:12.6]}
33... Rc8 {[%clk 0:01:34.8]} 34. Ne2 {[%clk 0:00:12.6]} 34... Nc6 {[%clk
0:01:33.1]} 35. Rg5 {[%clk 0:00:12.3]} 35... a5 {[%clk 0:01:33.2]} 36. Rg8
{[%clk 0:00:12.4]} 36... Rc7 {[%clk 0:01:30.5]} 37. h5 {[%clk 0:00:12.4]} 37...
Ba6 {[%clk 0:01:26.7]} 38. Re8 {[%clk 0:00:11.3]} 38... Bd3+ {[%clk 0:01:24.4]}
39. Ka1 {[%clk 0:00:11.6]} 39... Bxe2 {[%clk 0:00:58.4]} 40. Rxe7 {[%clk
0:00:11.4]} 40... Nxe7 {[%clk 0:00:54.3]} 41. Qxe2 {[%clk 0:00:11.6]} 41... Rc1+
{[%clk 0:00:45.2]} 42. Kb2 {[%clk 0:00:11.8]} 42... Rh1 {[%clk 0:00:45.2]} 43.
Qb5 {[%clk 0:00:11.9]} 43... Rh2 {[%clk 0:00:41.9]} 44. Qc5+ {[%clk 0:00:12.2]}
1-0

[Event "*** Titled Tuesday Blitz"]
[Site "Chess.com"]
[Date "2021.02.02"]
[Round "11"]
[White "2nd_life"]
[Black "DFeco"]
[Result "1-0"]
[WhiteElo "2461"]
[BlackElo "2271"]
[TimeControl "180+1"]
[EndTime "12:06:48 PST"]
[Termination "2nd_life won by resignation"]

1. e4 {[%clk 0:02:59]} 1... e5 {[%clk 0:02:59.6]} 2. f4 {[%clk 0:02:58.7]} 2...
c6 {[%clk 0:02:58.6]} 3. Nc3 {[%clk 0:02:50.2]} 3... exf4 {[%clk 0:02:57]} 4. d4
{[%clk 0:02:48.7]} 4... Bb4 {[%clk 0:02:49.5]} 5. Bxf4 {[%clk 0:02:44.7]} 5...
Bxc3+ {[%clk 0:02:47.6]} 6. bxc3 {[%clk 0:02:44.3]} 6... d5 {[%clk 0:02:42.2]}
7. exd5 {[%clk 0:02:34.2]} 7... Qxd5 {[%clk 0:02:37.1]} 8. Nf3 {[%clk
0:02:22.6]} 8... Qe4+ {[%clk 0:02:27.3]} 9. Qe2 {[%clk 0:02:22.3]} 9... Qxe2+
{[%clk 0:02:27]} 10. Bxe2 {[%clk 0:02:23.2]} 10... Bf5 {[%clk 0:02:24.1]} 11.
Kd2 {[%clk 0:01:54.9]} 11... Nd7 {[%clk 0:02:21.7]} 12. Rhe1 {[%clk 0:01:51.1]}
12... O-O-O {[%clk 0:02:21.1]} 13. Ng5 {[%clk 0:01:29.3]} 13... Nh6 {[%clk
0:02:16.5]} 14. g4 {[%clk 0:01:25.5]} 14... Bg6 {[%clk 0:02:12.6]} 15. h3 {[%clk
0:01:25]} 15... f6 {[%clk 0:02:09.1]} 16. Ne6 {[%clk 0:01:22.9]} 16... Rdg8
{[%clk 0:02:08]} 17. Rab1 {[%clk 0:01:19.7]} 17... Bf7 {[%clk 0:02:05.1]} 18.
Bc4 {[%clk 0:00:47.6]} 18... g5 {[%clk 0:01:49.6]} 19. Bh2 {[%clk 0:00:37.4]}
19... Re8 {[%clk 0:01:38.2]} 20. Bb3 {[%clk 0:00:32.7]} 20... Nb6 {[%clk
0:01:20.8]} 21. Nc5 {[%clk 0:00:20]} 21... Bc4 {[%clk 0:01:08.9]} 22. a4 {[%clk
0:00:17.3]} 22... Nf7 {[%clk 0:01:00.7]} 23. a5 {[%clk 0:00:13.2]} 23... Bxb3
{[%clk 0:01:00]} 24. axb6 {[%clk 0:00:13]} 24... axb6 {[%clk 0:00:57.6]} 25.
Nxb3 {[%clk 0:00:12.2]} 25... Rxe1 {[%clk 0:00:56]} 26. Rxe1 {[%clk 0:00:11.9]}
26... Kd7 {[%clk 0:00:55.6]} 27. c4 {[%clk 0:00:11.6]} 27... Re8 {[%clk
0:00:54.4]} 28. Rxe8 {[%clk 0:00:11.1]} 28... Kxe8 {[%clk 0:00:54.2]} 29. Bc7
{[%clk 0:00:11.2]} 29... b5 {[%clk 0:00:53.8]} 30. cxb5 {[%clk 0:00:11.5]} 30...
cxb5 {[%clk 0:00:53.9]} 31. d5 {[%clk 0:00:11.7]} 31... Kd7 {[%clk 0:00:53.9]}
32. Bh2 {[%clk 0:00:11.7]} 32... Nd6 {[%clk 0:00:50.8]} 33. Bxd6 {[%clk
0:00:10.7]} 33... Kxd6 {[%clk 0:00:50.9]} 34. Kd3 {[%clk 0:00:11]} 34... Kxd5
{[%clk 0:00:50.9]} 35. Nd4 {[%clk 0:00:11.2]} 35... b4 {[%clk 0:00:50.1]} 36.
Nf5 {[%clk 0:00:11.4]} 36... Ke5 {[%clk 0:00:48.6]} 37. Ke3 {[%clk 0:00:09.6]}
37... b5 {[%clk 0:00:47.7]} 38. Nd4 {[%clk 0:00:07.8]} 38... Kd5 {[%clk
0:00:47]} 39. Nxb5 {[%clk 0:00:07.7]} 39... Kc4 {[%clk 0:00:47.2]} 40. Nd4
{[%clk 0:00:06.8]} 40... Kc3 {[%clk 0:00:46.3]} 41. Ke4 {[%clk 0:00:07.3]} 41...
h6 {[%clk 0:00:41.4]} 42. Nc6 {[%clk 0:00:06.6]} 42... Kxc2 {[%clk 0:00:39.8]}
43. Nxb4+ {[%clk 0:00:06.8]} 43... Kd2 {[%clk 0:00:39.9]} 44. Nd5 {[%clk
0:00:07.4]} 44... Ke2 {[%clk 0:00:39.3]} 45. Nxf6 {[%clk 0:00:07.7]} 45... Kf2
{[%clk 0:00:39]} 46. Kf5 {[%clk 0:00:08.2]} 46... Kg3 {[%clk 0:00:39.2]} 47. Kg6
{[%clk 0:00:08.7]} 47... Kxh3 {[%clk 0:00:39.4]} 48. Kxh6 {[%clk 0:00:09.2]}
48... Kh4 {[%clk 0:00:39.7]} 49. Kg6 {[%clk 0:00:09.6]} 1-0

[Event "*** Titled Tuesday Blitz"]
[Site "Chess.com"]
[Date "2021.02.02"]
[Round "11"]
[White "azikom"]
[Black "ChristopherYoo"]
[Result "0-1"]
[WhiteElo "2664"]
[BlackElo "2849"]
[TimeControl "180+1"]
[EndTime "12:06:49 PST"]
[Termination "ChristopherYoo won on time"]

1. d4 {[%clk 0:03:00]} 1... Nf6 {[%clk 0:02:55.9]} 2. Nf3 {[%clk 0:02:59.7]}
2... e6 {[%clk 0:02:53.8]} 3. c4 {[%clk 0:02:57.7]} 3... d5 {[%clk 0:02:53.4]}
4. Nc3 {[%clk 0:02:57.1]} 4... dxc4 {[%clk 0:02:53.5]} 5. e3 {[%clk 0:02:57.2]}
5... a6 {[%clk 0:02:51.3]} 6. Bxc4 {[%clk 0:02:57.3]} 6... b5 {[%clk 0:02:50.3]}
7. Be2 {[%clk 0:02:57]} 7... c5 {[%clk 0:02:50.4]} 8. O-O {[%clk 0:02:57]} 8...
Bb7 {[%clk 0:02:46.6]} 9. dxc5 {[%clk 0:02:56.9]} 9... Bxc5 {[%clk 0:02:43.6]}
10. Qxd8+ {[%clk 0:02:55.7]} 10... Kxd8 {[%clk 0:02:43.2]} 11. b3 {[%clk
0:02:54.8]} 11... Nbd7 {[%clk 0:02:42.4]} 12. Bb2 {[%clk 0:02:55]} 12... Rc8
{[%clk 0:02:42.1]} 13. Rac1 {[%clk 0:02:53.3]} 13... Ke7 {[%clk 0:02:39.3]} 14.
Nb1 {[%clk 0:02:50.1]} 14... Bd6 {[%clk 0:02:23.1]} 15. Nbd2 {[%clk 0:02:44.8]}
15... Nc5 {[%clk 0:02:21.4]} 16. h3 {[%clk 0:02:41.5]} 16... Rhd8 {[%clk
0:02:19.3]} 17. Rfd1 {[%clk 0:02:35.3]} 17... h6 {[%clk 0:02:19.1]} 18. Kf1
{[%clk 0:02:34.5]} 18... Rd7 {[%clk 0:02:14.2]} 19. Ne5 {[%clk 0:02:21.8]} 19...
Rdc7 {[%clk 0:02:11.7]} 20. Ndf3 {[%clk 0:02:16.4]} 20... Nce4 {[%clk
0:02:10.2]} 21. Rxc7+ {[%clk 0:02:08.7]} 21... Rxc7 {[%clk 0:02:11.1]} 22. Bd3
{[%clk 0:02:07.1]} 22... Nc3 {[%clk 0:02:03.7]} 23. Ra1 {[%clk 0:02:05.2]} 23...
Nfe4 {[%clk 0:01:29.6]} 24. a4 {[%clk 0:02:00.1]} 24... Nc5 {[%clk 0:01:13.6]}
25. Bc2 {[%clk 0:01:13.6]} 25... Be4 {[%clk 0:00:48.7]} 26. Bxe4 {[%clk
0:01:09.4]} 26... N3xe4 {[%clk 0:00:47.9]} 27. axb5 {[%clk 0:01:07.1]} 27...
axb5 {[%clk 0:00:47.8]} 28. Ra6 {[%clk 0:00:36.8]} 28... Nxb3 {[%clk 0:00:39.9]}
29. Nc6+ {[%clk 0:00:36.2]} 29... Kd7 {[%clk 0:00:34.7]} 30. Nce5+ {[%clk
0:00:35.5]} 30... Kc8 {[%clk 0:00:31.1]} 31. Nd3 {[%clk 0:00:22.5]} 31... Kb7
{[%clk 0:00:23.2]} 32. Ra2 {[%clk 0:00:19.4]} 32... Rc2 {[%clk 0:00:22.5]} 33.
Nde1 {[%clk 0:00:15.4]} 33... Rxf2+ {[%clk 0:00:21.5]} 34. Kg1 {[%clk
0:00:14.5]} 34... Nc1 {[%clk 0:00:16.9]} 35. Ra1 {[%clk 0:00:12.5]} 35... Ne2+
{[%clk 0:00:16.6]} 36. Kh1 {[%clk 0:00:09.2]} 36... Rf1+ {[%clk 0:00:16.7]} 0-1

[Event "*** Titled Tuesday Blitz"]
[Site "Chess.com"]
[Date "2021.02.02"]
[Round "11"]
[White "Aradej"]
[Black "wnstop"]
[Result "0-1"]
[WhiteElo "2545"]
[BlackElo "2732"]
[TimeControl "180+1"]
[EndTime "12:06:50 PST"]
[Termination "wnstop won by resignation"]

1. d4 {[%clk 0:03:00.9]} 1... Nf6 {[%clk 0:02:55.6]} 2. Nf3 {[%clk 0:03:00.9]}
2... g6 {[%clk 0:02:53.1]} 3. e3 {[%clk 0:03:01]} 3... Bg7 {[%clk 0:02:53.2]} 4.
Be2 {[%clk 0:03:01.6]} 4... O-O {[%clk 0:02:53.6]} 5. O-O {[%clk 0:03:02.2]}
5... d6 {[%clk 0:02:54.1]} 6. c4 {[%clk 0:03:02.4]} 6... Nbd7 {[%clk 0:02:54]}
7. Nc3 {[%clk 0:03:02.8]} 7... e5 {[%clk 0:02:54.4]} 8. Qc2 {[%clk 0:03:02.8]}
8... Re8 {[%clk 0:02:53.8]} 9. Rd1 {[%clk 0:03:03]} 9... e4 {[%clk 0:02:46.8]}
10. Nd2 {[%clk 0:03:02.4]} 10... Qe7 {[%clk 0:02:46.8]} 11. b4 {[%clk
0:03:02.6]} 11... Nf8 {[%clk 0:02:44.8]} 12. a4 {[%clk 0:03:02.6]} 12... Bf5
{[%clk 0:02:44.3]} 13. Ba3 {[%clk 0:03:02.5]} 13... h5 {[%clk 0:02:43.4]} 14. b5
{[%clk 0:03:00.9]} 14... Ne6 {[%clk 0:02:42]} 15. Nb3 {[%clk 0:02:55.5]} 15...
Ng5 {[%clk 0:02:41.3]} 16. c5 {[%clk 0:02:55.7]} 16... Ng4 {[%clk 0:02:18.1]}
17. Nd5 {[%clk 0:02:49.6]} 17... Qd8 {[%clk 0:02:13.2]} 18. cxd6 {[%clk
0:02:47]} 18... cxd6 {[%clk 0:02:13.4]} 19. Qc7 {[%clk 0:02:46.5]} 19... Ne6
{[%clk 0:02:04.4]} 20. Qxd8 {[%clk 0:02:46.1]} 20... Raxd8 {[%clk 0:02:03.7]}
21. Rdc1 {[%clk 0:02:41.3]} 21... Nf6 {[%clk 0:02:02.7]} 22. Nxf6+ {[%clk
0:02:27.9]} 22... Bxf6 {[%clk 0:02:03.6]} 23. Na5 {[%clk 0:02:28]} 23... Rd7
{[%clk 0:01:59.9]} 24. Ra2 {[%clk 0:02:25.5]} 24... Bd8 {[%clk 0:01:58.7]} 25.
Bb4 {[%clk 0:02:23.7]} 25... Bxa5 {[%clk 0:01:43.8]} 26. Bxa5 {[%clk 0:02:23.2]}
26... Bg4 {[%clk 0:01:42.8]} 27. Bf1 {[%clk 0:02:21.8]} 27... b6 {[%clk
0:01:29.8]} 28. Bb4 {[%clk 0:02:21.3]} 28... Nc7 {[%clk 0:01:21.8]} 29. Rac2
{[%clk 0:02:19.5]} 29... Nd5 {[%clk 0:01:20.6]} 30. Ba3 {[%clk 0:02:19.3]} 30...
Be6 {[%clk 0:01:07.5]} 31. Rc6 {[%clk 0:02:18.5]} 31... Red8 {[%clk 0:01:07.1]}
32. h3 {[%clk 0:02:14]} 32... Kf8 {[%clk 0:01:05.6]} 33. Be2 {[%clk 0:02:13.9]}
33... Ke8 {[%clk 0:01:05.2]} 34. Kf1 {[%clk 0:02:13.8]} 34... Ne7 {[%clk
0:01:01.6]} 35. R6c3 {[%clk 0:02:09.5]} 35... Nd5 {[%clk 0:01:01.4]} 36. Rc8
{[%clk 0:02:01.1]} 36... Ne7 {[%clk 0:01:00.8]} 37. Rxd8+ {[%clk 0:01:59.7]}
37... Kxd8 {[%clk 0:01:01.7]} 38. Ke1 {[%clk 0:01:59.8]} 38... Bb3 {[%clk
0:00:59.6]} 39. a5 {[%clk 0:01:55.7]} 39... bxa5 {[%clk 0:00:52]} 40. g4 {[%clk
0:01:54.8]} 40... hxg4 {[%clk 0:00:47.2]} 41. hxg4 {[%clk 0:01:54.6]} 41... a4
{[%clk 0:00:43.7]} 42. Kd2 {[%clk 0:01:54.1]} 42... Nd5 {[%clk 0:00:39.7]} 43.
Rh1 {[%clk 0:01:52.8]} 43... Ke7 {[%clk 0:00:39.1]} 44. f3 {[%clk 0:01:48]}
44... exf3 {[%clk 0:00:21.5]} 45. Bxf3 {[%clk 0:01:47.5]} 45... Rc7 {[%clk
0:00:21.6]} 46. e4 {[%clk 0:01:45.3]} 46... Rc2+ {[%clk 0:00:18.7]} 47. Ke1
{[%clk 0:01:45.5]} 47... Nf4 {[%clk 0:00:14.5]} 48. e5 {[%clk 0:01:44.4]} 48...
Nd3+ {[%clk 0:00:14.7]} 49. Kf1 {[%clk 0:01:39.9]} 49... Rf2+ {[%clk 0:00:15]}
50. Kg1 {[%clk 0:01:40]} 50... Rxf3 {[%clk 0:00:15.4]} 51. Rh8 {[%clk 0:01:36]}
51... Bc4 {[%clk 0:00:06.5]} 52. Ra8 {[%clk 0:01:30.4]} 52... Nf4 {[%clk
0:00:05.2]} 53. Rxa7+ {[%clk 0:01:28.2]} 53... Ke6 {[%clk 0:00:05.5]} 54. exd6
{[%clk 0:01:24.9]} 54... Rxa3 {[%clk 0:00:04.9]} 55. b6 {[%clk 0:01:22.8]} 55...
Kxd6 {[%clk 0:00:04.1]} 56. b7 {[%clk 0:01:21.3]} 56... Rb3 {[%clk 0:00:04.5]}
57. Rxa4 {[%clk 0:01:21.4]} 57... Rxb7 {[%clk 0:00:04.3]} 58. Rxc4 {[%clk
0:01:21.5]} 58... Nd5 {[%clk 0:00:04.4]} 59. Ra4 {[%clk 0:01:20.8]} 59... Rb4
{[%clk 0:00:04.6]} 60. Ra6+ {[%clk 0:01:20.4]} 60... Ke7 {[%clk 0:00:04.7]} 61.
Ra7+ {[%clk 0:01:20.7]} 61... Kf6 {[%clk 0:00:04.9]} 0-1